bitfinex-derivatives/quotes_BNBF0:USTF0_20250413
["timestamp","ask_amount","ask_price","bid_price","bid_amount"]
[1744548922342,0.29589662,588.52,587.4,3.662]
[1744548922543,1.29324528,588.59,587.4,3.662]
[1744548922839,0.29608454,588.52,587.4,3.662]
[1744548923041,0.29579243,588.51,587.4,3.662]
[1744548923239,0.29579243,588.5,587.4,3.662]
[1744548923442,0.29579243,588.49,587.4,3.662]
[1744548923645,1.29324528,588.45,587.4,3.662]
[1744548923838,0.29579243,588.44,587.4,3.662]
[1744548924243,0.29579583,588.43,587.4,3.662]
[1744548924438,0.29579583,588.44,587.4,3.662]
[1744548924739,0.29579583,588.43,587.4,3.662]
[1744548924944,0.29579583,588.44,587.4,3.662]
[1744548925143,0.29579583,588.43,587.4,3.662]
[1744548925341,0.29579583,588.44,587.4,3.662]
[1744548925541,0.29579583,588.43,587.4,3.662]
[1744548925746,0.29610217,588.42,587.4,3.662]
[1744548926246,0.29579583,588.41,587.4,3.662]
[1744548928749,0.29579583,588.44,587.4,3.662]
[1744548929450,0.29579583,588.45,587.4,3.662]
[1744548929745,0.29609713,588.43,587.4,3.662]
[1744548929950,0.29579583,588.42,587.4,3.662]
[1744548931550,0.29579583,588.45,587.4,3.662]
[1744548931750,1.29324528,588.46,587.4,3.662]
[1744548931751,0.29579583,588.44,587.4,3.662]
[1744548931950,0.29579583,588.43,587.4,3.662]
[1744548932150,0.29579583,588.45,587.4,3.662]
[1744548932450,0.29579583,588.44,587.4,3.662]
[1744548932651,0.29579583,588.43,587.4,3.662]
[1744548932851,0.29579583,588.42,587.4,3.662]
[1744548933053,0.29579583,588.43,587.4,3.662]
[1744548933346,0.29579583,588.42,587.4,3.662]
[1744548933545,0.29610091,588.44,587.4,3.662]
[1744548933546,0.29579583,588.43,587.4,3.662]
[1744548933750,0.29579583,588.41,587.4,3.662]
[1744548933952,0.29610091,588.44,587.4,3.662]
[1744548934151,1.29324528,588.42,587.4,3.662]
[1744548934351,0.2957894,588.41,587.4,3.662]
[1744548935552,0.29610595,588.4,587.4,3.662]
[1744548935745,0.59189889,588.4,587.4,3.662]
[1744548935946,0.29579294,588.39,587.4,3.662]
[1744548937653,0.29579294,588.38,587.4,3.662]
[1744548937853,0.29579294,588.42,587.4,3.662]
[1744548938048,0.29579294,588.41,587.4,3.662]
[1744548938253,0.29579294,588.4,587.4,3.662]
[1744548938553,0.29579294,588.39,587.4,3.662]
[1744548940458,0.29610469,588.4,587.4,3.662]
[1744548940758,0.29578811,588.39,587.4,3.662]
[1744548943661,0.29578811,588.38,587.4,3.662]
[1744548943859,0.33992215,588.37,587.4,3.662]
[1744548944060,0.29578811,588.36,587.4,3.662]
[1744548945262,0.33992215,588.37,587.4,3.662]
[1744548945456,0.295787,588.36,587.4,3.662]
[1744548948565,0.33992215,588.37,587.4,3.662]
[1744548948764,0.29574222,588.36,587.4,3.662]
[1744548951367,0.33993371,588.35,587.4,3.662]
[1744548951562,0.29574222,588.34,587.4,3.662]
[1744548951766,0.33994526,588.33,587.4,3.662]
[1744548951966,0.29574222,588.32,587.4,3.662]
[1744548952562,0.33995682,588.31,587.4,3.662]
[1744548952762,0.29574222,588.3,587.4,3.662]
[1744548953066,0.63570482,588.3,587.4,3.662]
[1744548953266,0.29574222,588.29,587.4,3.662]
[1744548953569,0.2957333,588.28,587.4,3.662]
[1744548953863,0.2957333,588.27,587.4,3.662]
[1744548954064,0.33998572,588.26,587.4,3.662]
[1744548954264,0.2957333,588.25,587.4,3.662]
[1744548954467,0.33999728,588.24,587.4,3.662]
[1744548954664,0.2957333,588.23,587.4,3.662]
[1744548954861,0.63573636,588.23,587.4,3.662]
[1744548955069,0.2957333,588.22,587.4,3.662]
[1744548955769,0.63574214,588.22,587.4,3.662]
[1744548955962,0.63574792,588.21,587.4,3.662]
[1744548956164,0.6357537,588.2,587.4,3.662]
[1744548956366,0.2957333,588.19,587.4,3.662]
[1744548956768,0.29564395,588.18,587.4,3.662]
[1744548956968,0.29564395,588.19,587.4,3.662]
[1744548958369,0.29562976,588.18,587.4,3.662]
[1744548958664,0.29562976,588.17,587.4,3.662]
[1744548958870,0.29562976,588.19,587.4,3.662]
[1744548961170,0.3400204,588.2,587.4,3.662]
[1744548961470,0.29563315,588.19,587.4,3.662]
[1744548961868,0.3400204,588.2,587.4,3.662]
[1744548962073,0.29563635,588.19,587.4,3.662]
[1744548962673,0.3400204,588.2,587.4,3.662]
[1744548962875,0.29563581,588.19,587.4,3.662]
[1744548966073,0.29568151,588.18,587.4,3.662]
[1744548966378,0.29568151,588.17,587.4,3.662]
[1744548966673,0.29568151,588.16,587.4,3.662]
[1744548966879,0.29568151,588.19,587.4,3.662]
[1744548967076,0.29568151,588.18,587.4,3.662]
[1744548967380,0.29568151,588.17,587.4,3.662]
[1744548967578,0.29568151,588.19,587.4,3.662]
[1744548967879,0.29568151,588.18,587.4,3.662]
[1744548968081,0.29568151,588.19,587.4,3.662]
[1744548968272,0.29568151,588.18,587.4,3.662]
[1744548968477,0.29568151,588.17,587.4,3.662]
[1744548968676,0.29568151,588.19,587.4,3.662]
[1744548974078,0.3400204,588.2,587.4,3.662]
[1744548974276,0.29578856,588.19,587.4,3.662]
[1744548977486,0.29579011,588.18,587.4,3.662]
[1744548977683,0.29579011,588.19,587.4,3.662]
[1744548977882,0.29579011,588.18,587.4,3.662]
[1744548978082,0.29579011,588.19,587.4,3.662]
[1744548985491,0.3400204,588.2,587.4,3.662]
[1744548994697,0.29578416,588.19,587.4,3.662]
[1744548997202,0.3400204,588.2,587.4,3.662]
[1744548997703,0.29578859,588.19,587.4,3.662]
[1744548998406,0.3400204,588.2,587.4,3.662]
[1744548998600,0.29617651,588.18,587.4,3.662]
[1744548998905,0.29575713,588.17,587.4,3.662]
[1744548999106,0.63579487,588.17,587.4,3.662]
[1744548999306,0.29575713,588.16,587.4,3.662]
[1744548999508,0.3400493,588.15,587.4,3.662]
[1744548999806,0.29575713,588.14,587.4,3.662]
[1744549000006,0.34006087,588.13,587.4,3.662]
[1744549000206,0.29575713,588.12,587.4,3.662]
[1744549000407,0.34007243,588.11,587.4,3.662]
[1744549000605,0.29575713,588.1,587.4,3.662]
[1744549000906,0.340084,588.09,587.4,3.662]
[1744549001105,0.29575713,588.08,587.4,3.662]
[1744549001407,0.34009556,588.07,587.4,3.662]
[1744549001808,0.29563879,588.06,587.4,3.662]
[1744549003914,0.34010713,588.05,587.4,3.662]
[1744549004115,0.29563879,588.04,587.4,3.662]
[1744549004309,0.3401187,588.03,587.4,3.662]
[1744549004614,0.29563879,588.02,587.4,3.662]
[1744549004814,0.34013026,588.01,587.4,3.662]
[1744549005110,0.29563879,588.0,587.4,3.662]
[1744549005316,0.34014183,587.99,587.4,3.662]
[1744549005512,0.29563879,587.98,587.4,3.662]
[1744549005717,0.63578641,587.98,587.4,3.662]
[1744549005910,0.29563879,587.97,587.4,3.662]
[1744549006611,0.34014762,587.98,587.4,3.662]
[1744549006816,0.29562647,587.97,587.4,3.662]
[1744549008219,0.34014762,587.98,587.4,3.662]
[1744549008413,0.29562562,587.97,587.4,3.662]
[1744549011421,0.29560202,587.96,587.4,3.662]
[1744549011620,0.29560202,587.97,587.4,3.662]
[1744549014520,0.34014762,587.98,587.4,3.662]
[1744549014727,0.29551304,587.96,587.4,3.662]
[1744549015026,0.29551304,587.95,587.4,3.662]
[1744549015225,0.29551304,587.97,587.4,3.662]
[1744549015427,0.29551304,587.96,587.4,3.662]
[1744549015626,0.34014762,587.98,587.4,3.662]
[1744549015627,0.29551304,587.97,587.4,3.662]
[1744549015821,0.29551304,587.96,587.4,3.662]
[1744549016025,0.29551304,587.97,587.4,3.662]
[1744549022026,0.34014762,587.98,587.4,3.662]
[1744549022230,0.29550397,587.97,587.4,3.662]
[1744549023631,0.34014762,587.98,587.4,3.662]
[1744549023830,0.29548124,587.97,587.4,3.662]
[1744549025228,0.34014762,587.98,587.4,3.662]
[1744549025430,0.29545717,587.97,587.4,3.662]
[1744549026835,0.34015919,587.96,587.4,3.662]
[1744549027028,0.29544753,587.95,587.4,3.662]
[1744549027228,0.34017076,587.94,587.4,3.662]
[1744549027433,0.29544753,587.93,587.4,3.662]
[1744549028131,0.34018233,587.92,587.4,3.662]
[1744549028531,0.29539641,587.91,587.4,3.662]
[1744549028735,0.34019391,587.9,587.4,3.662]
[1744549029037,0.29539641,587.89,587.4,3.662]
[1744549029837,0.34020548,587.88,587.4,3.662]
[1744549030036,0.29539641,587.87,587.4,3.662]
[1744549030337,0.34021705,587.86,587.4,3.662]
[1744549030535,0.29539641,587.85,587.4,3.662]
[1744549031537,0.34021705,587.86,587.4,3.662]
[1744549031737,0.29537084,587.85,587.4,3.662]
[1744549034943,0.29534367,587.84,587.4,3.662]
[1744549035141,0.29534367,587.85,587.4,3.662]
[1744549035440,0.34021705,587.86,587.4,3.662]
[1744549035639,0.29537859,587.85,587.4,3.662]
[1744549036137,0.34021705,587.86,587.4,3.662]
[1744549039041,0.29538675,587.85,587.4,3.662]
[1744549039640,0.29538418,587.84,587.4,3.662]
[1744549039841,0.29538418,587.85,587.4,3.662]
[1744549040040,0.29538418,587.84,587.4,3.662]
[1744549040236,0.29538418,587.85,587.4,3.662]
[1744549041648,0.34021705,587.86,587.4,3.662]
[1744549050252,0.29537414,587.85,587.4,3.662]
[1744549050554,0.34021705,587.86,587.4,3.662]
[1744549050853,0.29537414,587.85,587.4,3.662]
[1744549052154,0.34021705,587.86,587.4,3.662]
[1744549052350,0.29539796,587.85,587.4,3.662]
[1744549053955,0.34021705,587.86,587.4,3.662]
[1744549063764,0.29537961,587.85,587.4,3.662]
[1744549066567,0.34021705,587.86,587.4,3.662]
[1744549066868,0.29536995,587.85,587.4,3.662]
[1744549071366,0.34021705,587.86,587.4,3.662]
[1744549071572,0.29533884,587.85,587.4,3.662]
[1744549072970,0.34021705,587.86,587.4,3.662]
[1744549073167,0.29533984,587.85,587.4,3.662]
[1744549073367,0.34021705,587.86,587.4,3.662]
[1744549077075,0.29530276,587.85,587.4,3.662]
[1744549077980,0.29530198,587.84,587.4,3.662]
[1744549078275,0.29530198,587.83,587.4,3.662]
[1744549078477,0.29530198,587.85,587.4,3.662]
[1744549078777,0.29530198,587.85,587.4,0.709]
[1744549081277,0.29530198,587.85,587.4,1.305]
[1744549081680,0.34022863,587.84,587.4,1.305]
[1744549081879,0.29530198,587.83,587.4,1.947]
[1744549082079,0.29530198,587.83,587.4,3.35]
[1744549082379,0.6355364,587.83,587.4,3.35]
[1744549082582,0.29530198,587.82,587.4,3.35]
[1744549082782,0.29530198,587.82,587.4,2.641]
[1744549088587,0.34023442,587.83,587.4,2.641]
[1744549088787,0.29532059,587.82,587.4,2.641]
[1744549090388,0.29529351,587.81,587.4,2.641]
[1744549090584,0.29529351,587.82,587.4,2.641]
[1744549091783,0.34023442,587.83,587.4,2.641]
[1744549091988,0.29529964,587.82,587.4,2.641]
[1744549093389,0.34023442,587.83,587.4,2.641]
[1744549093584,0.29530426,587.82,587.4,2.641]
[1744549094086,0.63554446,587.82,587.4,2.641]
[1744549094290,0.29530426,587.81,587.4,2.641]
[1744549096691,0.3402402,587.82,587.4,2.641]
[1744549096886,0.29531617,587.81,587.4,2.641]
[1744549102991,0.29531617,587.81,587.4,1.874]
[1744549107794,0.29531617,587.81,587.4,1.232]
[1744549108591,0.3402402,587.82,587.4,1.232]
[1744549108797,0.29529579,587.81,587.4,1.232]
[1744549109396,0.3402402,587.82,587.4,1.232]
[1744549109598,0.29529428,587.81,587.4,1.232]
[1744549111297,0.29529428,587.81,587.4,0.636]
[1744549114200,0.3402402,587.82,587.4,0.636]
[1744549114499,0.29525072,587.81,587.4,0.636]
[1744549120705,0.3402402,587.82,587.4,0.636]
[1744549120907,0.29525313,587.81,587.4,0.636]
[1744549124012,0.2952537,587.8,587.4,0.636]
[1744549124306,0.2952537,587.79,587.4,0.636]
[1744549124610,0.2952537,587.78,587.4,0.636]
[1744549124803,0.2952537,587.81,587.4,0.636]
[1744549125009,0.2952537,587.8,587.4,0.636]
[1744549125205,0.2952537,587.81,587.4,0.636]
[1744549125408,0.2952537,587.8,587.4,0.636]
[1744549125607,0.3402402,587.82,587.4,0.636]
[1744549125809,0.29524581,587.81,587.4,0.636]
[1744549127005,0.29524581,587.81,587.38,2.896]
[1744549127210,0.3402402,587.82,587.38,2.896]
[1744549127408,0.29525491,587.81,587.38,2.896]
[1744549127608,0.29525491,587.81,587.38,2.292]
[1744549129613,0.29525491,587.81,587.38,3.254]
[1744549129813,0.29525491,587.81,587.38,4.015]
[1744549130514,0.3402402,587.82,587.38,4.015]
[1744549130711,0.29524633,587.81,587.38,4.015]
[1744549130917,0.29524633,587.81,587.38,3.213]
[1744549134423,0.29524633,587.81,587.38,3.999]
[1744549135325,0.3402402,587.82,587.38,3.999]
[1744549135536,0.29525084,587.81,587.38,3.999]
[1744549136924,0.3402402,587.82,587.38,3.999]
[1744549137127,0.29527859,587.81,587.38,3.999]
[1744549140129,0.3402402,587.82,587.38,3.999]
[1744549140330,0.29529849,587.81,587.38,3.999]
[1744549144137,0.3402402,587.82,587.38,3.999]
[1744549144337,0.29529604,587.81,587.38,3.999]
[1744549144535,0.29529604,587.81,587.38,3.374]
[1744549144736,0.29527968,587.8,587.38,3.374]
[1744549145036,0.29527968,587.81,587.38,3.374]
[1744549145336,0.29527968,587.8,587.38,3.374]
[1744549145538,0.29527968,587.81,587.38,3.374]
[1744549145732,0.29527968,587.8,587.38,3.374]
[1744549146036,0.29527968,587.79,587.38,3.374]
[1744549146235,0.29527968,587.81,587.38,3.374]
[1744549146437,0.29527968,587.78,587.38,3.374]
[1744549146635,0.29527968,587.77,587.38,3.374]
[1744549146935,0.29527968,587.81,587.38,3.374]
[1744549147129,0.29527968,587.8,587.38,3.374]
[1744549147332,0.34025757,587.79,587.38,3.973]
[1744549147531,0.29527968,587.78,587.38,3.973]
[1744549147736,0.34025757,587.79,587.38,3.108]
[1744549147939,0.29523527,587.78,587.38,3.108]
[1744549148236,0.34026915,587.77,587.38,3.108]
[1744549148532,0.29523527,587.76,587.38,3.108]
[1744549148736,0.63551021,587.76,587.38,3.108]
[1744549148936,0.29523527,587.75,587.38,2.347]
[1744549152539,0.34027494,587.76,587.38,2.347]
[1744549152738,0.29522426,587.75,587.38,2.347]
[1744549154136,0.34027494,587.76,587.38,2.347]
[1744549154337,0.29511759,587.75,587.38,2.347]
[1744549155837,0.29511676,587.74,587.38,2.347]
[1744549156141,0.29511676,587.73,587.38,2.347]
[1744549156437,0.29511676,587.72,587.38,2.347]
[1744549156737,0.29511676,587.71,587.38,2.347]
[1744549157039,0.29511676,587.75,587.38,2.347]
[1744549157242,0.29511676,587.7,587.38,2.347]
[1744549157443,0.29511676,587.69,587.38,1.561]
[1744549157642,0.29511676,587.75,587.38,1.561]
[1744549160446,0.34027494,587.76,587.38,1.561]
[1744549160646,0.29506992,587.75,587.38,1.561]
[1744549161648,0.34027494,587.76,587.38,1.561]
[1744549169455,0.34027494,587.76,587.38,0.962]
[1744549169654,0.29506575,587.75,587.38,0.962]
[1744549170154,0.34027494,587.76,587.38,0.962]
[1744549170454,0.29506261,587.75,587.38,0.962]
[1744549172555,0.29506261,587.75,587.33,0.792]
[1744549174057,0.34027494,587.76,587.33,0.792]
[1744549175258,0.34027494,587.76,587.33,1.415]
[1744549180964,0.34027494,587.76,587.33,2.306]
[1744549183365,0.34027494,587.76,586.48,1.08439462]
[1744549183562,0.34027494,587.76,586.5,0.34100596]
[1744549183761,0.34027494,587.76,586.51,0.31288448]
[1744549183962,0.34027494,587.76,586.53,0.34098852]
[1744549184160,0.34027494,587.76,586.54,0.31288448]
[1744549184464,0.34027494,587.76,586.56,0.34097108]
[1744549184662,0.34027494,587.76,586.57,0.31288448]
[1744549184862,0.34027494,587.76,586.59,0.34095364]
[1744549185166,0.34027494,587.76,586.6,0.31288448]
[1744549185466,0.34027494,587.76,586.61,0.6538265]
[1744549185762,0.34027494,587.76,586.62,0.65382069]
[1744549185959,0.34027494,587.76,586.63,0.65381487]
[1744549186164,0.34027494,587.76,586.64,0.65380906]
[1744549186461,0.34027494,587.76,586.65,0.65379915]
[1744549186665,0.34027494,587.76,586.66,0.34091296]
[1744549186863,0.34027494,587.76,586.67,0.31288038]
[1744549187067,0.34027494,587.76,586.68,0.34090134]
[1744549187265,0.34027494,587.76,586.69,0.31288038]
[1744549187470,0.34027494,587.76,586.7,0.34088972]
[1744549187671,0.34027494,587.76,586.71,0.31288038]
[1744549187871,0.34027494,587.76,586.72,0.3408781]
[1744549188071,0.34027494,587.76,586.73,0.31288038]
[1744549188266,0.34027494,587.76,586.74,0.34086648]
[1744549188470,0.34027494,587.76,586.75,0.31288038]
[1744549188670,0.34027494,587.76,586.76,0.34085486]
[1744549188866,0.34027494,587.76,586.77,0.31288038]
[1744549189071,0.34027494,587.76,586.78,0.34084324]
[1744549189271,0.34027494,587.76,586.79,0.31288038]
[1744549189573,0.34027494,587.76,586.8,0.65370624]
[1744549189872,0.34027494,587.76,586.81,0.65370044]
[1744549190072,0.34027494,587.76,586.82,0.31287462]
[1744549192978,0.34027494,587.76,586.83,0.31287466]
[1744549193177,0.34027494,587.76,586.82,0.31287466]
[1744549193377,1.30127355,588.43,586.83,0.31287466]
[1744549193578,0.29532735,588.42,586.82,0.31287466]
[1744549193771,0.29532735,588.42,586.83,0.31287466]
[1744549193978,0.59157194,588.42,586.82,0.31287466]
[1744549194174,0.29532735,588.41,586.83,0.31287466]
[1744549194380,0.3399106,588.39,586.82,0.31287466]
[1744549194680,0.29532735,588.38,586.83,0.65368886]
[1744549194879,0.33992793,588.36,586.84,0.31287466]
[1744549195076,0.29532735,588.35,586.84,0.31287466]
[1744549195275,0.33994526,588.33,586.84,0.31287466]
[1744549195577,0.29532735,588.32,586.84,0.31287466]
[1744549195772,0.3399626,588.3,586.84,0.31287466]
[1744549195974,0.29532735,588.29,586.84,0.31287466]
[1744549196176,0.33997994,588.27,586.85,0.34080259]
[1744549196375,0.29532735,588.26,586.86,0.31287466]
[1744549196981,0.3399915,588.25,586.86,0.31287466]
[1744549197180,0.29532735,588.24,586.86,0.65367144]
[1744549197380,0.34000306,588.23,586.87,0.31287466]
[1744549197580,0.29532735,588.22,586.87,0.31287466]
[1744549197782,0.34001462,588.21,586.87,0.31287466]
[1744549197975,0.29532735,588.2,586.87,0.31287466]
[1744549198179,0.34002618,588.19,586.87,0.31287466]
[1744549198479,0.29532735,588.18,586.87,0.31287466]
[1744549198677,0.34003774,588.17,586.87,0.31287466]
[1744549198984,0.29532735,588.16,586.88,0.34078516]
[1744549199183,0.3400493,588.15,586.89,0.31287466]
[1744549199385,0.29532735,588.14,586.89,0.31287466]
[1744549199586,0.34006087,588.13,586.89,0.31287466]
[1744549199786,0.29532735,588.12,586.89,0.31287466]
[1744549199982,0.34007243,588.11,586.89,0.31287466]
[1744549200184,0.29532735,588.1,586.89,0.31287466]
[1744549201387,0.29532735,588.1,586.9,0.34077355]
[1744549201688,0.29532735,588.1,586.91,0.31287466]
[1744549201886,0.29532735,588.1,586.92,0.34076194]
[1744549202082,0.29532735,588.1,586.93,0.31287466]
[1744549203987,0.2953638,588.09,586.94,0.31284035]
[1744549204182,0.2953638,588.1,586.93,0.31284035]
[1744549205087,0.2953638,588.1,586.93,0.99784035]
[1744549205289,0.2953638,588.1,586.94,0.31284035]
[1744549205588,0.2953638,588.1,586.95,0.34074452]
[1744549205788,0.2953638,588.1,586.96,0.31284035]
[1744549206294,0.2953638,588.1,586.97,0.34073291]
[1744549206485,0.2953638,588.1,586.98,0.31284035]
[1744549206686,0.2953638,588.1,586.99,0.3407213]
[1744549206884,0.2953638,588.1,587.0,0.31284035]
[1744549207090,0.2953638,588.1,587.01,0.34070969]
[1744549207390,0.2953638,588.1,587.02,0.31284035]
[1744549208090,0.2953638,588.1,587.02,1.05884035]
[1744549208284,0.2953638,588.1,587.03,0.31284035]
[1744549208485,0.29539635,588.09,587.04,0.31278916]
[1744549208689,0.29539635,588.1,587.03,0.31278916]
[1744549208890,0.29539635,588.09,587.04,0.31278916]
[1744549209192,0.29539635,588.08,587.05,0.31278916]
[1744549209490,0.29539635,588.07,587.06,0.31278916]
[1744549209690,0.29539635,588.1,587.03,0.31278916]
[1744549209985,0.29539635,588.09,587.04,0.31278916]
[1744549210191,0.29539635,588.1,587.03,0.31278916]
[1744549210491,0.29539366,588.09,587.04,0.3127932]
[1744549210690,0.29539366,588.1,587.03,0.3127932]
[1744549214294,0.29539366,588.1,587.03,1.0497932]
[1744549214490,0.29539366,588.1,587.04,0.3127932]
[1744549216794,0.34007243,588.11,587.03,0.737]
[1744549216997,0.29548667,588.1,587.04,0.3128367]
[1744549217391,0.340084,588.09,587.04,0.3128367]
[1744549217694,0.29548667,588.08,587.04,0.3128367]
[1744549219397,0.29548667,588.08,587.04,0.9748367]
[1744549219597,0.29548667,588.08,587.05,0.3128367]
[1744549221700,0.340084,588.09,587.04,0.662]
[1744549221900,0.29557904,588.08,587.05,0.31280621]
[1744549225296,0.29557904,588.07,587.05,0.31280621]
[1744549225500,0.29557904,588.24,587.05,0.31280621]
[1744549225701,0.29557904,588.23,587.05,0.31280621]
[1744549226001,0.29557904,588.22,587.05,0.31280621]
[1744549226300,0.29557904,588.21,587.05,0.31280621]
[1744549226516,0.29557904,588.42,587.05,0.31280621]
[1744549226698,0.29557904,588.2,587.05,0.31280621]
[1744549226900,0.29557904,588.19,587.05,0.31280621]
[1744549227098,0.29557904,588.24,587.05,0.31280621]
[1744549227298,0.29557904,588.23,587.05,0.31280621]
[1744549227497,0.29557904,588.42,587.05,0.31280621]
[1744549227697,0.29557904,588.41,587.05,0.31280621]
[1744549227898,0.29557904,588.4,587.05,0.31280621]
[1744549228100,0.29557904,588.39,587.05,0.31280621]
[1744549228302,0.29557904,588.38,587.05,0.31280621]
[1744549228501,0.29557904,588.37,587.05,1.26580621]
[1744549228703,0.29557904,588.36,587.06,0.31280621]
[1744549228903,0.29557904,588.4,587.06,0.31280621]
[1744549229202,0.29617525,588.41,587.06,0.31280621]
[1744549229203,0.29557904,588.39,587.06,0.31280621]
[1744549229403,0.29557904,588.38,587.06,0.31280621]
[1744549229603,0.29557904,588.37,587.06,0.31280621]
[1744549229805,1.30127355,588.37,587.06,0.31280621]
[1744549230003,0.29557904,588.36,587.06,0.31280621]
[1744549230804,0.29557904,588.35,587.06,0.31280621]
[1744549231005,0.29557904,588.34,587.06,0.31280621]
[1744549231401,0.29557904,588.33,587.06,0.31280621]
[1744549231604,0.29557904,588.36,587.06,0.31280621]
[1744549231802,0.2961866,588.33,587.06,0.31280621]
[1744549232105,0.29557904,588.32,587.06,0.31280621]
[1744549233107,0.2961866,588.33,587.05,0.953]
[1744549233311,1.59688811,588.32,587.06,0.31279497]
[1744549233509,0.29561456,588.31,587.06,0.31279497]
[1744549234717,1.30127355,588.32,587.05,0.953]
[1744549235011,0.29566277,588.31,587.06,0.312752]
[1744549235812,0.29566277,588.3,587.06,0.312752]
[1744549236015,0.29566277,588.32,587.06,0.312752]
[1744549236214,0.29566277,588.31,587.06,0.874752]
[1744549236409,0.29566277,588.32,587.07,0.312752]
[1744549236808,0.29566277,588.45,587.07,0.312752]
[1744549237007,0.29566277,588.44,587.07,0.312752]
[1744549237308,0.29566277,588.45,587.07,0.312752]
[1744549237513,0.29566277,588.44,587.07,0.312752]
[1744549237715,0.29566277,588.45,587.07,0.312752]
[1744549237916,0.29611855,588.47,587.06,0.562]
[1744549238116,0.29567668,588.44,587.08,0.31271106]
[1744549238317,0.29567668,588.43,587.09,0.31271106]
[1744549238615,0.29611855,588.47,587.06,0.562]
[1744549238616,0.29567668,588.42,587.1,0.31271106]
[1744549238812,0.29567668,588.46,587.07,0.31271106]
[1744549239009,0.29567668,588.45,587.08,0.31271106]
[1744549239319,0.29567668,588.46,587.07,0.31271106]
[1744549239519,0.29567668,588.45,587.08,0.31271106]
[1744549239816,0.29567668,588.44,587.09,0.31271106]
[1744549240008,0.29567668,588.46,587.07,0.31271106]
[1744549240209,0.29567668,588.45,587.08,0.31271106]
[1744549240411,0.29567668,588.44,587.09,0.31271106]
[1744549240615,0.29567668,588.44,587.06,0.562]
[1744549240616,0.29567668,588.46,587.07,0.31271106]
[1744549243715,0.29567668,588.7,587.08,0.889]
[1744549243913,0.29567668,588.69,587.09,0.31271106]
[1744549244118,0.29567668,588.68,587.09,0.31271106]
[1744549244318,1.30127355,588.71,587.08,1.674]
[1744549244516,0.29563804,588.7,587.09,0.31270731]
[1744549244716,0.59171754,588.7,587.09,0.31270731]
[1744549244922,0.29563804,588.69,587.1,0.644]
[1744549245113,0.29563804,588.68,587.11,0.31270731]
[1744549245319,0.29563804,588.67,587.11,0.31270731]
[1744549245515,0.29563804,588.66,587.11,0.31270731]
[1744549245715,0.29563804,588.65,587.11,0.31270731]
[1744549246020,0.2960795,588.7,587.12,0.31270377]
[1744549246219,0.29564254,588.69,587.11,0.31270377]
[1744549246420,0.29564254,588.68,587.12,0.31270377]
[1744549246621,2.21397236,588.98,587.1,0.644]
[1744549246622,0.29564254,588.67,587.11,0.31270377]
[1744549246923,0.29564254,588.66,587.11,0.31270377]
[1744549247124,0.29564254,588.65,587.11,0.31270377]
[1744549247423,0.29564254,588.64,587.11,0.31270377]
[1744549247619,0.29564393,588.63,587.12,0.31270223]
[1744549247820,0.29564393,588.62,587.11,0.31270223]
[1744549248122,0.29564393,588.61,587.12,0.31270223]
[1744549248323,0.29564393,588.6,587.11,0.31270223]
[1744549248523,0.29564393,588.59,587.11,0.31270223]
[1744549248724,0.29564393,588.58,587.11,0.31270223]
[1744549249021,0.29564393,588.67,587.11,0.31270223]
[1744549249328,0.29564393,588.66,587.11,0.31270223]
[1744549249625,0.29564393,588.65,587.11,0.31270223]
[1744549249825,0.29564393,588.73,587.11,0.31270223]
[1744549250025,0.29564393,588.72,587.11,0.31270223]
[1744549250221,0.29564393,588.73,587.11,0.31270223]
[1744549250726,0.2960732,588.72,587.1,0.644]
[1744549250927,0.29564063,588.71,587.11,0.31269944]
[1744549252722,0.29564063,589.06,587.11,0.31269944]
[1744549252929,0.29564063,589.05,587.11,0.31269944]
[1744549253128,0.29564063,589.04,587.11,0.31269944]
[1744549253429,0.29564063,589.03,587.11,0.31269944]
[1744549253629,0.29564063,589.02,587.11,0.31269944]
[1744549253828,0.29564063,589.01,587.11,0.31269944]
[1744549254023,0.29564063,589.0,587.11,0.31269944]
[1744549254224,0.29564063,588.99,587.11,0.31269944]
[1744549254527,0.29564063,588.98,587.11,0.31269944]